[Event "Catalan Youth Championship 2024"]
[Site "Cambrils"]
[Date "2024.03.23"]
[Round "1.13"]
[White "Vardanyan Asilbekyan, Ani"]
[Black "Salinas Tomas, Daniel"]
[Result "0-1"]
[ECO "B07"]
[WhiteElo "1789"]
[BlackElo "2386"]
[Annotator "RC"]
[PlyCount "140"]
[EventDate "2024.03.13"]
[EventType "swiss"]
[EventCountry "ESP"]
[SourceTitle "playchess.com"]
[Source "ChessBase"]
[SourceQuality "1"]
[TimeControl "5400+30"]

1. e4 {[%emt 1:31:00]} d6 2. d4 {[%emt 0:00:30]} Nf6 {[%emt 1:31:30]} 3. Nc3 e5 4. dxe5 {[%emt 0:01:00]} dxe5 5. Qxd8+ Kxd8 {[%emt 0:01:30]} 6. Bc4 {[%emt 0:01:00]} Ke8 {[%emt 0:00:30]} 7. Nf3 {[%emt 0:00:30]} Bd6 8. O-O {[%emt 0:00:30]} c6 {[%emt 0:01:00]} 9. Rd1 {[%emt 0:00:30]} Bc7 {[%emt 0:00:30]} 10. a4 {[%emt 0:00:00]} Nbd7 {[%emt 0:00:30]} 11. h3 h6 {[%emt 0:00:30]} 12. Be3 {[%emt 0:01:30]} Ba5 {[%emt 0:00:30]} 13. Bd3 {[%emt 0:00:30]} Ke7 {[%emt 0:00:00]} 14. Nd2 {[%emt 0:00:00]} Rd8 {[%emt 0:00:00]} 15. Nc4 {[%emt 0:00:00]} Bxc3 {[%emt 0:00:00]} 16. bxc3 {[%emt 0:00:00]} b6 {[%emt 0:00:00]} 17. f4 {[%emt 0:00:00]} exf4 {[%emt 0:00:00]} 18. Bxf4 {[%emt 0:00:00]} Nc5 {[%emt 0:00:00]} 19. Ne5 {[%emt 0:00:00]} Bb7 {[%emt 0:00:00]} 20. a5 {[%emt 0:00:00]} Rac8 {[%emt 0:00:00]} 21. axb6 {[%emt 0:00:00]} axb6 {[%emt 0:00:00]} 22. Ra7 {[%emt 0:00:00]} Nfd7 {[%emt 0:00:00]} 23. Nc4 {[%emt 0:00:00]} Ra8 {[%emt 0:00:00]} 24. Rda1 {[%emt 0:00:00]} Rxa7 {[%emt 0:00:00]} 25. Rxa7 {[%emt 0:00:00]} Ra8 {[%emt 0:00:00]} 26. Rxa8 {[%emt 0:00:00]} Bxa8 {[%emt 0:00:00]} 27. Bd6+ {[%emt 0:00:00]} Ke6 {[%emt 0:00:00]} 28. Bxc5 {[%emt 0:00:00]} bxc5 {[%emt 0:00:00]} 29. Kf2 {[%emt 0:02:19]} Ne5 {[%emt 0:00:00]} 30. Nxe5 {[%emt 0:00:52]} Kxe5 {[%emt 0:00:00]} 31. Ke3 {[%emt 0:00:40]} Bb7 {[%emt 0:00:00]} 32. Bc4 {[%emt 0:00:40]} f6 {[%emt 0:00:00]} 33. Bf7 {[%emt 0:00:45]} c4 {[%emt 0:05:01]} 34. Bg6 {[%emt 0:02:54]} c5 {[%emt 0:00:14]} 35. g3 {[%emt 0:00:29]} Bc8 {[%emt 0:01:06]} 36. g4 {[%emt 0:01:13]} Bb7 {[%emt 0:01:21]} 37. Kf3 {[%emt 0:00:44]} Bc6 {[%emt 0:00:09]} 38. Bf7 {[%emt 0:00:21]} Bxe4+ {[%emt 0:00:09]} 39. Ke3 {[%emt 0:00:23]} Bd5 {[%emt 0:02:10]} 40. Bg6 {[%emt 0:00:11]} Be6 {[%emt 0:00:53]} 41. Kf3 {[%emt 0:01:30]} f5 {[%emt 0:00:13]} 42. Kg3 {[%emt 0:00:45]} f4+ {[%emt 0:01:25]} 43. Kf2 {[%emt 0:00:19]} Bd5 {[%emt 0:00:06]} 44. Bh7 {[%emt 0:00:31]} g5 {[%emt 0:00:11]} 45. Bg6 {[%emt 0:00:17]} Be4 {[%emt 0:00:22]} 46. Bf7 {[%emt 0:00:04]} Bd5 {[%emt 0:00:55]} 47. Bg6 {[%emt 0:00:06]} Kd6 {[%emt 0:00:07]} 48. Bf5 {[%emt 0:00:31]} Be6 {[%emt 0:01:13]} 49. Be4 {[%emt 0:00:58]} Ke5 {[%emt 0:00:06]} 50. Bg6 {[%emt 0:00:34]} Kf6 {[%emt 0:00:05]} 51. Be4 {[%emt 0:00:32]} Bf7 {[%emt 0:00:07]} 52. Kf3 {[%emt 0:00:40]} Bg6 {[%emt 0:00:07]} 53. Bd5 {[%emt 0:00:14]} Bxc2 {[%emt 0:00:06]} 54. Bxc4 {[%emt 0:00:06]} Ke5 {[%emt 0:00:05]} 55. Bf7 {[%emt 0:00:57]} Be4+ {[%emt 0:00:19]} 56. Kf2 {[%emt 0:00:07]} Bd5 {[%emt 0:00:05]} 57. Bg6 {[%emt 0:00:09]} Kd6 {[%emt 0:00:04]} 58. Ke2 {[%emt 0:00:35]} Bg2 {[%emt 0:00:23]} 59. Bd3 {[%emt 0:00:42]} Kc7 {[%emt 0:01:39]} 60. Kf2 {[%emt 0:00:20]} Bd5 {[%emt 0:00:09]} 61. Be2 {[%emt 0:00:15]} Kb6 {[%emt 0:00:06]} 62. Bf1 {[%emt 0:00:23]} Ka5 {[%emt 0:00:08]} 63. Ke1 {[%emt 0:00:00]} Ka4 {[%emt 0:00:00]} 64. Kd1 {[%emt 0:02:00]} Kb3 {[%emt 0:00:07]} 65. Kd2 {[%emt 0:00:10]} Bf3 {[%emt 0:00:18]} 66. Kd3 {[%emt 0:00:21]} Bd5 {[%emt 0:00:09]} 67. Kd2 {[%emt 0:00:06]} Be4 {[%emt 0:00:06]} 68. c4 {[%emt 0:00:27]} Kb4 {[%emt 0:00:14]} 69. Kc1 {[%emt 0:00:43]} Kc3 {[%emt 0:00:05]} 70. Be2 {[%emt 0:00:58]} f3 {[%emt 0:00:12]} 0-1

[Event "Catalan Youth Championship 2024"]
[Site "Cambrils"]
[Date "2024.03.23"]
[Round "1.14"]
[White "Montes Molina, Ivan"]
[Black "Gomez Paredes, Isaac"]
[Result "1-0"]
[ECO "C41"]
[WhiteElo "2100"]
[BlackElo "1787"]
[Annotator "RC"]
[PlyCount "73"]
[EventDate "2024.03.13"]
[EventType "swiss"]
[EventCountry "ESP"]
[SourceTitle "playchess.com"]
[Source "ChessBase"]
[SourceQuality "1"]
[TimeControl "5400+30"]

1. e4 {[%emt 0:00:04]} d6 {[%emt 0:00:04]} 2. d4 {[%emt 0:00:08]} Nf6 {[%emt 0:00:05]} 3. Nc3 {[%emt 0:00:06]} e5 {[%emt 0:00:57]} 4. Nf3 {[%emt 0:00:11]} Nbd7 {[%emt 0:00:09]} 5. Bc4 {[%emt 0:00:54]} Be7 {[%emt 0:00:18]} 6. O-O {[%emt 0:00:19]} c6 {[%emt 0:00:22]} 7. Bb3 {[%emt 0:00:47]} Qc7 {[%emt 0:01:02]} 8. a4 {[%emt 0:02:57]} O-O {[%emt 0:00:32]} 9. Qe2 {[%emt 0:02:56]} b6 {[%emt 0:04:24]} 10. Rd1 {[%emt 0:00:51]} a6 {[%emt 0:02:11]} 11. Be3 {[%emt 0:05:14]} Rb8 {[%emt 0:02:42]} 12. d5 {[%emt 0:05:38]} cxd5 {[%emt 1:23:44]} 13. exd5 {[%emt 0:03:50]} Nc5 {[%emt 0:00:00]} 14. Bxc5 {[%emt 0:03:02]} bxc5 {[%emt 0:00:00]} 15. h3 {[%emt 1:11:03]} Bb7 {[%emt 0:00:00]} 16. Nd2 {[%emt 0:00:00]} Rfc8 {[%emt 0:02:00]} 17. Nc4 {[%emt 0:00:00]} Qd8 {[%emt 0:00:00]} 18. a5 {[%emt 0:00:00]} Rc7 {[%emt 0:00:00]} 19. Nb6 {[%emt 0:00:00]} Nd7 {[%emt 0:00:00]} 20. Nca4 {[%emt 0:02:30]} Bc8 {[%emt 0:02:00]} 21. Bc4 {[%emt 0:00:00]} Ra7 {[%emt 0:00:00]} 22. Ra3 {[%emt 0:00:00]} Bf6 {[%emt 0:00:00]} 23. Rb3 {[%emt 0:01:30]} Be7 {[%emt 0:01:30]} 24. Rdd3 {[%emt 0:00:00]} Bf8 {[%emt 0:00:00]} 25. Rg3 {[%emt 0:00:00]} f5 {[%emt 0:00:00]} 26. Nxc8 {[%emt 0:00:00]} Rxc8 {[%emt 0:00:00]} 27. Nb6 {[%emt 0:00:00]} Rb8 {[%emt 0:00:00]} 28. Nxd7 {[%emt 0:00:00]} Rxb3 {[%emt 0:00:00]} 29. Rxb3 {[%emt 0:00:00]} Rxd7 {[%emt 0:00:00]} 30. Rb6 {[%emt 0:00:00]} Ra7 {[%emt 0:00:00]} 31. Bxa6 {[%emt 0:00:00]} Qa8 {[%emt 0:00:00]} 32. Qb5 {[%emt 0:00:00]} Qxd5 {[%emt 0:00:00]} 33. Qc4 {[%emt 0:00:00]} Qxc4 {[%emt 0:00:00]} 34. Bxc4+ {[%emt 0:00:00]} Kh8 {[%emt 0:00:00]} 35. Rb8 {[%emt 0:00:00]} g6 {[%emt 0:00:00]} 36. Rxf8+ {[%emt 0:00:00]} Kg7 {[%emt 0:00:00]} 37. Rf7+ {[%emt 0:00:00]} 1-0

[Event "Catalan Youth Championship 2024"]
[Site "Cambrils"]
[Date "2024.03.23"]
[Round "1.15"]
[White "Toquero Gracia, Laura"]
[Black "Aleksanyan Israilyan, Nicolas"]
[Result "0-1"]
[ECO "A46"]
[WhiteElo "1776"]
[BlackElo "2045"]
[Annotator "NA RC"]
[PlyCount "74"]
[EventDate "2024.03.13"]
[EventType "swiss"]
[EventCountry "ESP"]
[SourceTitle "playchess.com"]
[Source "ChessBase"]
[SourceQuality "1"]
[TimeControl "5400+30"]

1. d4 {[%emt 0:00:03]} d5 {[%emt 0:00:05]} 2. Nf3 {[%emt 0:00:05]} Nf6 {[%emt 0:00:04]} 3. g3 {[%emt 0:00:06]} b5 {[%emt 0:00:06]} 4. Bg2 {[%emt 0:00:07]} e6 {[%emt 0:00:06]} 5. a4 {[%emt 0:00:21]} b4 {[%emt 0:00:07]} 6. a5 {[%emt 0:03:56]} Ba6 {[%emt 0:00:12]} 7. Ne5 {[%emt 0:04:16]} Bd6 {[%emt 0:01:33]} 8. Nd3 {[%emt 0:08:28]} Nbd7 {[%emt 0:00:30]} 9. c3 {[%emt 0:07:25]} bxc3 {[%emt 0:00:40]} 10. bxc3 {[%emt 0:01:43]} Rb8 {[%emt 0:01:20]} 11. Ba3 {[%emt 0:02:33]} Bxa3 {[%emt 0:00:43]} 12. Nxa3 {[%emt 0:01:44]} Bxd3 {[%emt 0:00:48]} 13. Qxd3 {[%emt 0:01:39]} c5 {[%emt 0:00:58]} 14. Nc2 {[%emt 0:14:50]} c4 {[%emt 0:02:14]} 15. Qd2 {[%emt 0:01:53]} Rb5 {[%emt 0:00:13]} 16. a6 {[%emt 0:01:18]} O-O {[%emt 0:02:53]} 17. Nb4 {[%emt 0:01:59]} Qb6 {[%emt 0:00:36]} 18. O-O {[%emt 0:06:54]} Nb8 {[%emt 0:00:41]} 19. Qa2 {[%emt 0:04:20]} Nc6 {[%emt 0:01:35]} 20. Nxc6 {[%emt 0:03:35]} Qxc6 {[%emt 0:00:11]} 21. Rfb1 {[%emt 0:01:00]} Rfb8 {[%emt 0:00:09]} 22. Rxb5 {[%emt 0:01:06]} Qxb5 {[%emt 0:00:17]} 23. Qa5 {[%emt 0:05:14]} Qxa5 {[%emt 0:01:48]} 24. Rxa5 {[%emt 0:00:06]} Rb1+ {[%emt 0:00:05]} 25. Bf1 {[%emt 0:00:10]} Ne4 {[%emt 0:00:01]} 26. f3 {[%emt 0:05:48]} Nd2 {[%emt 0:00:13]} 27. Rc5 {[%emt 0:00:06]} Rxf1+ {[%emt 0:00:22]} 28. Kg2 {[%emt 0:00:03]} g6 {[%emt 0:00:09]} 29. Rc7 {[%emt 0:00:09]} Ra1 {[%emt 0:00:12]} 30. Rxa7 {[%emt 0:00:15]} Nb1 {[%emt 0:00:21]} 31. Rb7 {[%emt 0:00:38]} Nxc3 {[%emt 0:00:29]} 32. a7 {[%emt 0:00:23]} Kg7 {[%emt 0:00:04]} 33. Kf2 {[%emt 0:01:23]} Ra2 {[%emt 0:00:30]} 34. Kf1 {[%emt 0:01:07]} Nd1 {[%emt 0:02:02]} 35. Ke1 {[%emt 0:03:22]} Ne3 {[%emt 0:00:17]} 36. Kf2 {[%emt 0:00:20]} Nf5 {[%emt 0:00:09]} 37. Rb2 {[%emt 0:00:19]} Rxa7 {[%emt 0:00:12]} 0-1

[Event "Catalan Youth Championship 2024"]
[Site "Cambrils"]
[Date "2024.03.23"]
[Round "1.16"]
[White "Clotet Mas, Dan"]
[Black "Bosch Garcia, Ivan"]
[Result "1-0"]
[ECO "B10"]
[WhiteElo "2028"]
[BlackElo "1776"]
[Annotator "RC"]
[PlyCount "77"]
[EventDate "2024.03.13"]
[EventType "swiss"]
[EventCountry "ESP"]
[SourceTitle "playchess.com"]
[Source "ChessBase"]
[SourceQuality "1"]
[TimeControl "5400+30"]

1. e4 {[%emt 0:00:02]} c6 {[%emt 0:00:09]} 2. Nf3 {[%emt 0:00:05]} d5 {[%emt 0:00:05]} 3. d3 {[%emt 0:00:04]} Bg4 {[%emt 0:00:10]} 4. h3 {[%emt 0:00:06]} Bxf3 {[%emt 0:00:07]} 5. Qxf3 {[%emt 0:00:04]} e6 {[%emt 0:00:18]} 6. g3 {[%emt 0:00:10]} Nd7 {[%emt 0:00:15]} 7. Bg2 {[%emt 0:00:48]} Ngf6 {[%emt 0:01:22]} 8. O-O {[%emt 0:00:43]} Bd6 {[%emt 0:00:44]} 9. exd5 {[%emt 0:00:55]} cxd5 {[%emt 0:04:21]} 10. c4 {[%emt 0:04:14]} O-O {[%emt 0:06:54]} 11. Nc3 {[%emt 1:28:49]} Ne5 {[%emt 0:19:07]} 12. Qe2 {[%emt 0:00:00]} dxc4 {[%emt 0:03:03]} 13. dxc4 {[%emt 0:00:00]} Qc7 {[%emt 0:01:17]} 14. b3 {[%emt 0:00:00]} a6 {[%emt 0:01:51]} 15. Rd1 {[%emt 0:00:00]} Nc6 {[%emt 0:06:11]} 16. Be3 {[%emt 0:00:00]} Be5 {[%emt 0:16:30]} 17. Rac1 {[%emt 0:00:00]} Rad8 {[%emt 0:01:53]} 18. Ne4 {[%emt 0:00:00]} Nxe4 {[%emt 0:01:52]} 19. Bxe4 {[%emt 0:00:00]} Bd4 {[%emt 0:01:08]} 20. Bf4 {[%emt 0:00:00]} e5 {[%emt 0:03:17]} 21. Bd2 {[%emt 0:00:00]} Rfe8 {[%emt 0:03:13]} 22. Bd5 {[%emt 0:00:11]} h6 {[%emt 0:13:40]} 23. Qf3 {[%emt 0:01:27]} Rd6 {[%emt 0:02:20]} 24. Rf1 {[%emt 0:01:39]} Rg6 {[%emt 0:02:14]} 25. g4 {[%emt 0:02:01]} Rf6 {[%emt 0:06:28]} 26. Qe4 {[%emt 0:00:38]} Qb6 {[%emt 0:00:38]} 27. Be3 {[%emt 0:00:34]} Rd8 {[%emt 0:01:29]} 28. Kg2 {[%emt 0:00:55]} g5 {[%emt 0:00:42]} 29. Rcd1 {[%emt 0:00:35]} Rfd6 {[%emt 0:02:26]} 30. Bxd4 {[%emt 0:00:39]} exd4 {[%emt 0:00:34]} 31. Qf5 {[%emt 0:00:31]} Qc7 {[%emt 0:00:42]} 32. f4 {[%emt 0:00:33]} gxf4 {[%emt 0:00:57]} 33. Rxf4 {[%emt 0:00:06]} Rf8 {[%emt 0:00:20]} 34. Rdf1 {[%emt 0:00:38]} Ne7 {[%emt 0:00:38]} 35. Bxf7+ {[%emt 0:00:18]} Kg7 {[%emt 0:00:21]} 36. Qe5+ {[%emt 0:00:22]} Kh7 {[%emt 0:00:19]} 37. Bg8+ {[%emt 0:00:54]} Rxg8 {[%emt 0:00:36]} 38. Rf7+ {[%emt 0:00:07]} Kg6 {[%emt 0:00:21]} 39. Qh5# {[%emt 0:00:06]} 1-0

[Event "Catalan Youth Championship 2024"]
[Site "Cambrils"]
[Date "2024.03.23"]
[Round "1.17"]
[White "Camprubi Juanola, Jordi"]
[Black "Valle Luis, Leo"]
[Result "1/2-1/2"]
[ECO "E10"]
[WhiteElo "1880"]
[BlackElo "2230"]
[Annotator "RC"]
[PlyCount "155"]
[EventDate "2024.03.13"]
[EventType "swiss"]
[EventCountry "ESP"]
[SourceTitle "playchess.com"]
[Source "ChessBase"]
[SourceQuality "1"]
[TimeControl "5400+30"]

1. d4 {[%emt 1:31:00]} Nf6 {[%emt 0:00:17]} 2. Nf3 {[%emt 0:00:00]} e6 {[%emt 0:00:08]} 3. c4 {[%emt 0:00:00]} c5 {[%emt 0:00:19]} 4. Nc3 {[%emt 0:00:00]} a6 {[%emt 0:02:43]} 5. d5 {[%emt 0:00:00]} d6 {[%emt 0:00:43]} 6. e4 {[%emt 0:00:00]} e5 {[%emt 0:00:41]} 7. a4 {[%emt 0:00:00]} Be7 {[%emt 0:01:17]} 8. a5 {[%emt 0:00:00]} Nbd7 {[%emt 0:01:27]} 9. Bd3 {[%emt 0:00:00]} h6 {[%emt 0:00:23]} 10. Qa4 {[%emt 0:00:00]} Rb8 {[%emt 0:03:12]} 11. b4 {[%emt 0:00:00]} cxb4 {[%emt 0:00:09]} 12. Na2 {[%emt 0:00:00]} b3 {[%emt 0:00:58]} 13. Nb4 {[%emt 0:00:00]} O-O {[%emt 0:00:28]} 14. Qxb3 {[%emt 0:00:00]} Nc5 {[%emt 0:00:18]} 15. Qc2 {[%emt 0:00:00]} Bg4 {[%emt 0:00:06]} 16. Ng1 {[%emt 0:00:00]} Qc7 {[%emt 1:25:21]} 17. Be3 {[%emt 0:08:00]} Rbc8 {[%emt 0:00:00]} 18. f3 {[%emt 0:00:00]} Nxd3+ {[%emt 0:00:00]} 19. Nxd3 {[%emt 0:00:00]} Bh5 {[%emt 0:00:00]} 20. Nb2 {[%emt 0:00:00]} Bg6 {[%emt 0:00:00]} 21. Qb3 {[%emt 0:00:00]} Nd7 {[%emt 0:02:30]} 22. Ne2 {[%emt 0:00:00]} Nc5 {[%emt 0:00:00]} 23. Qb4 {[%emt 0:00:00]} f5 {[%emt 0:00:00]} 24. exf5 {[%emt 0:03:30]} Bxf5 {[%emt 0:00:00]} 25. O-O {[%emt 0:00:00]} Nd3 {[%emt 0:00:00]} 26. Nxd3 {[%emt 0:00:00]} Bxd3 {[%emt 0:00:00]} 27. Rfe1 {[%emt 0:00:00]} Qxc4 {[%emt 0:00:00]} 28. Qxb7 {[%emt 0:02:00]} Bh4 {[%emt 0:00:00]} 29. Rec1 {[%emt 0:00:30]} Qb5 {[%emt 0:00:00]} 30. Qxb5 {[%emt 0:00:00]} Bxb5 {[%emt 0:00:00]} 31. Nc3 {[%emt 0:00:00]} Bc4 {[%emt 0:00:00]} 32. Na4 {[%emt 0:00:00]} Bb5 {[%emt 0:00:00]} 33. Nb6 {[%emt 0:00:00]} Rxc1+ {[%emt 0:00:00]} 34. Rxc1 {[%emt 0:00:00]} Kh7 {[%emt 0:00:00]} 35. Nc8 {[%emt 0:00:00]} Rd8 {[%emt 0:00:00]} 36. Bb6 {[%emt 0:00:00]} Rd7 {[%emt 0:00:00]} 37. Bc7 {[%emt 0:00:00]} Bg5 {[%emt 0:00:00]} 38. Rc3 {[%emt 0:00:00]} Bd2 {[%emt 0:00:00]} 39. Rc2 {[%emt 0:00:00]} Be3+ {[%emt 0:00:00]} 40. Kh1 {[%emt 0:00:00]} Ba4 {[%emt 0:00:00]} 41. Nb6 {[%emt 0:00:00]} Bxc2 {[%emt 0:00:00]} 42. Nxd7 {[%emt 0:00:00]} Bb3 {[%emt 0:00:00]} 43. Bxd6 {[%emt 0:00:00]} Bxd5 {[%emt 0:00:00]} 44. Bxe5 {[%emt 0:00:00]} Kg6 {[%emt 0:00:00]} 45. h3 {[%emt 0:00:00]} Kf7 {[%emt 0:00:00]} 46. Bc3 {[%emt 0:00:00]} h5 {[%emt 0:00:00]} 47. Bb4 {[%emt 0:00:00]} g5 {[%emt 0:00:00]} 48. Nc5 {[%emt 0:00:00]} Bc4 {[%emt 0:00:00]} 49. Ne4 {[%emt 0:00:10]} Kg6 {[%emt 0:14:00]} 50. Bd2 {[%emt 0:00:59]} Bf4 {[%emt 0:00:00]} 51. Bxf4 {[%emt 0:01:10]} gxf4 {[%emt 0:00:00]} 52. g3 {[%emt 0:00:22]} fxg3 {[%emt 0:00:00]} 53. Nxg3 {[%emt 0:00:06]} h4 {[%emt 0:00:00]} 54. Ne4 {[%emt 0:00:18]} Bf1 {[%emt 0:00:00]} 55. Kh2 {[%emt 0:01:23]} Bd3 {[%emt 0:03:00]} 56. Kg2 {[%emt 0:09:02]} Kf5 {[%emt 0:00:00]} 57. Nc5 {[%emt 0:00:00]} Bc4 {[%emt 0:00:00]} 58. Kf2 {[%emt 0:00:00]} Kf4 {[%emt 0:00:00]} 59. Nd7 {[%emt 0:01:30]} Bd3 {[%emt 0:00:00]} 60. Nc5 {[%emt 0:00:00]} Bb5 {[%emt 0:00:00]} 61. Ne6+ {[%emt 0:00:00]} Ke5 {[%emt 0:00:00]} 62. Ng5 {[%emt 0:01:30]} Kf5 {[%emt 0:00:00]} 63. Nh7 {[%emt 0:00:00]} Kg6 {[%emt 0:00:00]} 64. Nf8+ {[%emt 0:00:00]} Kf6 {[%emt 0:00:00]} 65. Ke3 {[%emt 0:00:00]} Bf1 {[%emt 0:00:00]} 66. Nd7+ {[%emt 0:00:12]} Kg5 {[%emt 0:00:00]} 67. Nc5 {[%emt 0:00:10]} Bxh3 {[%emt 0:02:25]} 68. Nxa6 {[%emt 0:00:02]} Bf1 {[%emt 0:00:38]} 69. Nc5 {[%emt 0:00:21]} h3 {[%emt 0:00:24]} 70. Ne4+ {[%emt 0:00:04]} Kh4 {[%emt 0:00:47]} 71. Kf2 {[%emt 0:00:27]} Bc4 {[%emt 0:00:57]} 72. Nd2 {[%emt 0:01:50]} Ba6 {[%emt 0:00:40]} 73. Nf1 {[%emt 0:00:30]} Bb7 {[%emt 0:00:16]} 74. Nh2 {[%emt 0:00:09]} Ba6 {[%emt 0:00:09]} 75. Nf1 {[%emt 0:00:05]} Kg5 {[%emt 0:00:46]} 76. Kg3 {[%emt 0:00:29]} Bxf1 {[%emt 0:00:20]} 77. a6 {[%emt 0:00:04]} Bxa6 {[%emt 0:00:34]} 78. Kxh3 {[%emt 0:03:37]} 1/2-1/2

[Event "Catalan Youth Championship 2024"]
[Site "Cambrils"]
[Date "2024.03.23"]
[Round "1.18"]
[White "Ano Pla, Gerard"]
[Black "Moran Cabezas, Eric"]
[Result "1-0"]
[ECO "A23"]
[WhiteElo "2230"]
[BlackElo "1876"]
[Annotator "RC"]
[PlyCount "51"]
[EventDate "2024.03.13"]
[EventType "swiss"]
[EventCountry "ESP"]
[SourceTitle "playchess.com"]
[Source "ChessBase"]
[SourceQuality "1"]
[TimeControl "5400+30"]

1. c4 {[%emt 1:31:00]} e5 {[%emt 1:31:00]} 2. Nc3 {[%emt 0:00:30]} Nf6 {[%emt 0:00:30]} 3. g3 {[%emt 0:00:30]} Bb4 {[%emt 0:00:30]} 4. Bg2 {[%emt 0:00:30]} c6 {[%emt 0:00:30]} 5. Nf3 {[%emt 0:00:30]} e4 {[%emt 0:00:30]} 6. Nd4 {[%emt 0:00:30]} Bxc3 {[%emt 0:00:30]} 7. dxc3 {[%emt 0:00:30]} d5 {[%emt 0:00:30]} 8. cxd5 {[%emt 0:00:30]} cxd5 {[%emt 0:00:30]} 9. Qb3 {[%emt 0:00:30]} Nc6 {[%emt 0:00:30]} 10. Bg5 {[%emt 0:00:30]} Nxd4 {[%emt 0:00:30]} 11. cxd4 {[%emt 0:00:30]} Qa5+ {[%emt 0:00:30]} 12. Bd2 {[%emt 0:00:30]} Qd8 {[%emt 0:00:30]} 13. Bb4 {[%emt 0:00:30]} Bd7 {[%emt 0:00:30]} 14. Rc1 {[%emt 0:00:30]} Qb6 {[%emt 0:00:30]} 15. Qc3 {[%emt 0:00:30]} Bc6 {[%emt 0:00:30]} 16. O-O {[%emt 0:00:30]} Nd7 {[%emt 0:00:30]} 17. f3 {[%emt 0:00:30]} a5 {[%emt 0:00:30]} 18. Ba3 {[%emt 0:00:30]} f6 {[%emt 0:00:30]} 19. fxe4 {[%emt 0:00:30]} dxe4 {[%emt 0:00:30]} 20. e3 {[%emt 0:00:30]} Bd5 {[%emt 0:00:30]} 21. Bh3 {[%emt 0:00:30]} Rd8 {[%emt 0:00:30]} 22. Qc7 {[%emt 0:00:30]} Qxc7 {[%emt 0:00:30]} 23. Rxc7 {[%emt 0:00:30]} Rg8 {[%emt 0:00:30]} 24. Rfc1 {[%emt 0:00:30]} Bc6 {[%emt 0:00:30]} 25. Be6 {[%emt 0:00:30]} Rh8 {[%emt 0:00:30]} 26. d5 {[%emt 0:00:30]} 1-0

[Event "Catalan Youth Championship 2024"]
[Site "Cambrils"]
[Date "2024.03.23"]
[Round "1.19"]
[White "Casares Bonals, Asier"]
[Black "Sanchez Aguilar, Arnau"]
[Result "0-1"]
[ECO "D04"]
[WhiteElo "1872"]
[BlackElo "2168"]
[Annotator "RC"]
[PlyCount "70"]
[EventDate "2024.03.13"]
[EventType "swiss"]
[EventCountry "ESP"]
[SourceTitle "playchess.com"]
[Source "ChessBase"]
[SourceQuality "1"]
[TimeControl "5400+30"]

1. d4 {[%emt 0:00:04]} Nf6 {[%emt 0:01:04]} 2. Nf3 {[%emt 0:00:17]} d5 {[%emt 0:00:14]} 3. e3 {[%emt 0:00:47]} Bf5 {[%emt 1:30:42]} 4. Nbd2 {[%emt 0:03:18]} e6 {[%emt 0:00:00]} 5. Be2 {[%emt 0:05:45]} h6 {[%emt 0:00:00]} 6. O-O {[%emt 1:23:19]} Bd6 {[%emt 0:00:00]} 7. b3 {[%emt 0:00:00]} Nbd7 {[%emt 0:00:00]} 8. Bb2 {[%emt 0:00:00]} O-O {[%emt 0:00:00]} 9. Ne5 {[%emt 0:01:30]} Ne4 {[%emt 0:00:00]} 10. f3 {[%emt 0:00:00]} Nxd2 {[%emt 0:00:00]} 11. Qxd2 {[%emt 0:00:00]} Nxe5 {[%emt 0:00:00]} 12. dxe5 {[%emt 0:00:00]} Bc5 {[%emt 0:00:00]} 13. Bd4 {[%emt 0:02:00]} Be7 {[%emt 0:00:00]} 14. Rad1 {[%emt 0:00:00]} c5 {[%emt 0:00:00]} 15. Bb2 {[%emt 0:00:00]} Qc7 {[%emt 0:00:00]} 16. Kh1 {[%emt 0:00:00]} Rfd8 {[%emt 0:06:30]} 17. f4 {[%emt 0:00:00]} Rac8 {[%emt 0:00:30]} 18. Ba3 {[%emt 0:02:30]} Qc6 {[%emt 0:00:00]} 19. Qc1 {[%emt 0:00:00]} b5 {[%emt 0:00:00]} 20. Bf3 {[%emt 0:01:00]} Qa6 {[%emt 0:01:30]} 21. Be2 {[%emt 0:00:00]} Qa5 {[%emt 0:00:30]} 22. Bb2 {[%emt 0:00:00]} c4 {[%emt 0:00:30]} 23. Qb1 {[%emt 0:00:00]} cxb3 {[%emt 0:00:30]} 24. axb3 {[%emt 0:00:00]} Bxc2 {[%emt 0:00:00]} 25. Qa1 {[%emt 0:02:30]} Qb6 {[%emt 0:01:00]} 26. Bd4 {[%emt 0:00:00]} Bc5 {[%emt 0:00:00]} 27. b4 {[%emt 0:00:00]} Bxd4 {[%emt 0:00:00]} 28. Rxd4 {[%emt 0:00:00]} Be4 {[%emt 0:01:30]} 29. Rc1 {[%emt 0:02:00]} Rxc1+ {[%emt 0:00:00]} 30. Qxc1 {[%emt 0:00:00]} Qb7 {[%emt 0:01:00]} 31. Qd1 {[%emt 0:00:00]} Rc8 {[%emt 0:00:00]} 32. Kg1 {[%emt 0:00:00]} Qc6 {[%emt 0:01:00]} 33. Rd2 {[%emt 0:00:00]} Qc3 {[%emt 0:00:00]} 34. Kf2 {[%emt 0:00:00]} Qxb4 {[%emt 0:00:00]} 35. Qa1 {[%emt 0:00:00]} Qxd2 {[%emt 0:01:30]} 0-1